[Event "Deutschland Grand Prix 2022"]
[Site "Dortmund"]
[Date "2022.07.17"]
[Round "1.2"]
[White "Eljanov, Pavel"]
[Black "Svane, Rasmus"]
[Result "1-0"]
[ECO "C50"]
[WhiteElo "2681"]
[BlackElo "2649"]
[Annotator "ChessBase"]
[PlyCount "179"]
[EventDate "2022.07.17"]
[EventType "tourn"]
[EventCountry "GER"]
[SourceTitle "playchess.com"]
[Source "ChessBase"]
[SourceQuality "1"]
[TimeControl "40/5400+30:1800+30"]

1. e4 {[%emt 0:00:06]} e5 {[%emt 0:00:08]} 2. Nf3 {[%emt 0:00:05]} Nc6 {[%emt 0:00:06]} 3. Bc4 {[%emt 0:00:51]} Nf6 {[%emt 0:00:14]} 4. d3 {[%emt 0:00:08]} Bc5 {[%emt 0:00:05]} 5. Nc3 {[%emt 0:00:45]} h6 {[%emt 0:02:47]} 6. O-O {[%emt 0:02:10]} d6 {[%emt 0:04:29]} 7. Na4 {[%emt 0:02:53]} Bb6 {[%emt 0:02:09]} 8. a3 {[%emt 0:03:59]} O-O {[%emt 0:01:36]} 9. h3 {[%emt 0:05:49]} Qe7 {[%emt 0:13:44]} 10. b4 {[%emt 0:15:21]} Be6 {[%emt 0:09:09]} 11. Bxe6 {[%emt 0:00:11]} Qxe6 {[%emt 0:01:18]} 12. c4 {[%emt 0:06:38]} a6 {[%emt 0:15:04]} 13. Nxb6 {[%emt 0:00:21]} cxb6 {[%emt 0:00:05]} 14. Bb2 {[%emt 0:02:33]} Rfc8 {[%emt 0:04:43]} 15. Nh4 {[%emt 0:08:19]} b5 {[%emt 0:02:41]} 16. cxb5 {[%emt 0:00:07]} axb5 {[%emt 0:00:06]} 17. f4 {[%emt 0:01:33]} Nd7 {[%emt 0:11:48]} 18. Kh1 {[%emt 0:05:47]} Nb6 {[%emt 0:07:27]} 19. Rc1 {[%emt 0:08:59]} Ne7 {[%emt 0:08:40]} 20. f5 {[%emt 0:05:33]} Qf6 {[%emt 0:03:01]} 21. Nf3 {[%emt 0:00:38]} Rxc1 {[%emt 0:01:06]} 22. Bxc1 {[%emt 0:05:38]} d5 {[%emt 0:01:01]} 23. Nh2 {[%emt 0:01:01]} Nd7 {[%emt 0:02:02]} 24. Ng4 {[%emt 0:00:07]} Qh4 {[%emt 0:01:29]} 25. Kh2 {[%emt 0:08:14]} Nf6 {[%emt 0:00:18]} 26. Nxe5 {[%emt 0:00:48]} dxe4 {[%emt 0:00:33]} 27. Rf4 {[%emt 0:06:28]} Qh5 {[%emt 0:01:32]} 28. g4 {[%emt 0:00:16]} Qh4 {[%emt 0:00:37]} 29. dxe4 {[%emt 0:00:25]} Nc6 {[%emt 0:02:59]} 30. Nxc6 {[%emt 0:03:44]} bxc6 {[%emt 0:00:02]} 31. e5 {[%emt 0:02:23]} Nd5 {[%emt 0:00:19]} 32. Rf3 {[%emt 0:00:06]} Re8 {[%emt 0:01:25]} 33. Qe2 {[%emt 0:02:00]} Qe7 {[%emt 0:01:25]} 34. Bb2 {[%emt 0:00:14]} Nb6 {[%emt 0:00:07]} 35. e6 {[%emt 0:01:12]} Nc4 {[%emt 0:00:56]} 36. Kg2 {[%emt 0:02:26]} Nxb2 {[%emt 0:01:31]} 37. Qxb2 {[%emt 0:00:05]} fxe6 {[%emt 0:01:09]} 38. f6 {[%emt 0:00:01]} Qf7 {[%emt 0:00:37]} 39. Qc3 {[%emt 0:01:21]} e5 {[%emt 0:00:50]} 40. Qxc6 {[%emt 0:00:39]} e4 {[%emt 0:00:36]} 41. Re3 {[%emt 0:18:03]} Re5 {[%emt 0:13:46]} 42. Rxe4 {[%emt 0:06:14]} Qa2+ {[%emt 0:04:54]} 43. Kg3 {[%emt 0:00:18]} Qb3+ {[%emt 0:09:57]} 44. Kf4 {[%emt 0:01:03]} gxf6 {[%emt 0:00:07]} 45. Rxe5 {[%emt 0:02:37]} fxe5+ {[%emt 0:00:01]} 46. Kf5 {[%emt 0:01:44]} Qd3+ {[%emt 0:01:49]} 47. Qe4 {[%emt 0:01:12]} Qxa3 {[%emt 0:01:06]} 48. Qd5+ {[%emt 0:00:08]} Kf8 {[%emt 0:02:06]} 49. Qd8+ {[%emt 0:00:54]} Kf7 {[%emt 0:00:10]} 50. Qf6+ {[%emt 0:00:55]} Ke8 {[%emt 0:00:21]} 51. Qxe5+ {[%emt 0:00:12]} Kd8 {[%emt 0:01:02]} 52. Ke6 {[%emt 0:00:22]} Kc8 {[%emt 0:00:40]} 53. Qc5+ {[%emt 0:00:12]} Kb7 {[%emt 0:00:13]} 54. Qxb5+ {[%emt 0:00:06]} Kc8 {[%emt 0:00:05]} 55. Qc5+ {[%emt 0:02:45]} Kb7 {[%emt 0:00:08]} 56. h4 {[%emt 0:00:16]} Qg3 {[%emt 0:01:31]} 57. Qd5+ {[%emt 0:00:09]} Ka7 {[%emt 0:00:11]} 58. Qd4+ {[%emt 0:00:22]} Kb7 {[%emt 0:00:20]} 59. Qe4+ {[%emt 0:01:14]} Ka7 {[%emt 0:00:23]} 60. h5 {[%emt 0:00:14]} Qf2 {[%emt 0:00:44]} 61. Ke7 {[%emt 0:01:20]} Qd2 {[%emt 0:00:48]} 62. Kf7 {[%emt 0:00:13]} Kb6 {[%emt 0:00:26]} 63. Kg7 {[%emt 0:00:30]} Kb5 {[%emt 0:00:21]} 64. Kh7 {[%emt 0:00:08]} Ka4 {[%emt 0:00:44]} 65. Qc6+ {[%emt 0:01:06]} Kxb4 {[%emt 0:00:05]} 66. Qxh6 {[%emt 0:00:26]} Qe2 {[%emt 0:00:59]} 67. Qf4+ {[%emt 0:00:41]} Kb3 {[%emt 0:00:09]} 68. Qf7+ {[%emt 0:00:05]} Kb2 {[%emt 0:00:25]} 69. g5 {[%emt 0:00:10]} Kc1 {[%emt 0:01:01]} 70. h6 {[%emt 0:00:12]} Qd3+ {[%emt 0:00:21]} 71. g6 {[%emt 0:00:06]} Kb1 {[%emt 0:00:23]} 72. Qf6 {[%emt 0:00:37]} Qe4 {[%emt 0:00:46]} 73. Kg7 {[%emt 0:00:22]} Qb7+ {[%emt 0:00:19]} 74. Qf7 {[%emt 0:00:13]} Qe4 {[%emt 0:00:42]} 75. h7 {[%emt 0:01:12]} Qd4+ {[%emt 0:00:18]} 76. Kf8 {[%emt 0:00:24]} Qc5+ {[%emt 0:00:33]} 77. Qe7 {[%emt 0:00:10]} Qc8+ {[%emt 0:00:12]} 78. Kf7 {[%emt 0:00:16]} Qc4+ {[%emt 0:00:16]} 79. Qe6 {[%emt 0:01:27]} Qf4+ {[%emt 0:00:31]} 80. Ke7 {[%emt 0:00:13]} Qh4+ {[%emt 0:00:27]} 81. Ke8 {[%emt 0:00:39]} Qa4+ {[%emt 0:00:21]} 82. Qd7 {[%emt 0:00:33]} Qe4+ {[%emt 0:00:35]} 83. Kd8 {[%emt 0:01:11]} Qa8+ {[%emt 0:00:30]} 84. Ke7 {[%emt 0:00:05]} Qe4+ {[%emt 0:00:17]} 85. Kf6 {[%emt 0:00:15]} Qh4+ {[%emt 0:01:32]} 86. Kg7 {[%emt 0:00:06]} Qe4 {[%emt 0:00:29]} 87. h8=Q {[%emt 0:00:40]} Qe5+ {[%emt 0:00:13]} 88. Kf7 {[%emt 0:01:08]} Qxh8 {[%emt 0:00:07]} 89. Qf5+ {[%emt 0:00:05]} Ka1 {[%emt 0:00:07]} 90. g7 {[%emt 0:00:05]} 1-0

[Event "Deutschland Grand Prix 2022"]
[Site "Dortmund"]
[Date "2022.07.17"]
[Round "1.3"]
[White "Deac, Bogdan-Daniel"]
[Black "Navara, David"]
[Result "1-0"]
[ECO "D85"]
[WhiteElo "2692"]
[BlackElo "2688"]
[Annotator "ChessBase"]
[PlyCount "97"]
[EventDate "2022.07.17"]
[EventType "tourn"]
[EventCountry "GER"]
[SourceTitle "playchess.com"]
[Source "ChessBase"]
[SourceQuality "1"]
[TimeControl "40/5400+30:1800+30"]

1. d4 {[%emt 0:00:04]} Nf6 {[%emt 0:00:04]} 2. c4 {[%emt 0:00:34]} g6 {[%emt 0:00:06]} 3. Nc3 {[%emt 0:00:49]} d5 {[%emt 0:00:04]} 4. cxd5 {[%emt 0:00:08]} Nxd5 {[%emt 0:00:08]} 5. Bd2 {[%emt 0:00:05]} Bg7 {[%emt 0:01:28]} 6. e4 {[%emt 0:02:56]} Nb6 {[%emt 0:01:35]} 7. Be3 {[%emt 0:00:49]} O-O {[%emt 0:00:09]} 8. Bb5 {[%emt 0:01:13]} Bd7 {[%emt 0:09:23]} 9. Be2 {[%emt 0:06:55]} e5 {[%emt 0:11:12]} 10. dxe5 {[%emt 0:15:30]} Bxe5 {[%emt 0:00:16]} 11. Nf3 {[%emt 0:00:06]} Bxc3+ {[%emt 0:06:01]} 12. bxc3 {[%emt 0:00:08]} Bc6 {[%emt 0:17:40]} 13. Nd2 {[%emt 0:08:09]} N8d7 {[%emt 0:01:20]} 14. O-O {[%emt 0:09:08]} Qe7 {[%emt 0:00:34]} 15. Re1 {[%emt 0:05:13]} Nc5 {[%emt 0:12:05]} 16. Bf1 {[%emt 0:06:29]} Rad8 {[%emt 0:04:01]} 17. Qb1 {[%emt 0:03:50]} Nba4 {[%emt 0:15:14]} 18. f3 {[%emt 0:12:16]} Rfe8 {[%emt 0:08:15]} 19. Qc2 {[%emt 0:02:47]} a6 {[%emt 0:01:10]} 20. Rab1 {[%emt 0:07:56]} Bb5 {[%emt 0:02:14]} 21. c4 {[%emt 0:05:35]} Bc6 {[%emt 0:00:58]} 22. Nb3 {[%emt 0:02:33]} b6 {[%emt 0:01:47]} 23. Bf2 {[%emt 0:00:55]} Rd7 {[%emt 0:04:01]} 24. Nd4 {[%emt 0:01:28]} Bb7 25. e5 {[%emt 0:01:13]} Qg5 {[%emt 0:00:29]} 26. h4 {[%emt 0:01:03]} Qh6 {[%emt 0:01:33]} 27. Rbd1 {[%emt 0:01:39]} Bc8 {[%emt 0:00:41]} 28. Bg3 {[%emt 0:03:58]} Rdd8 {[%emt 0:01:15]} 29. e6 {[%emt 0:00:56]} fxe6 {[%emt 0:00:40]} 30. Bxc7 {[%emt 0:00:27]} Rd7 {[%emt 0:00:04]} 31. Bg3 {[%emt 0:00:19]} e5 {[%emt 0:00:55]} 32. Bxe5 {[%emt 0:00:46]} Qxh4 {[%emt 0:00:21]} 33. Bg3 {[%emt 0:00:30]} Qd8 {[%emt 0:00:06]} 34. Bh4 {[%emt 0:00:28]} Rxe1 {[%emt 0:00:55]} 35. Bxd8 {[%emt 0:00:04]} Rxd1 {[%emt 0:00:07]} 36. Qxd1 {[%emt 0:00:04]} Rxd8 {[%emt 0:00:04]} 37. Qa1 {[%emt 0:00:39]} Bd7 {[%emt 0:01:04]} 38. Nb3 {[%emt 0:00:39]} Be6 {[%emt 0:00:27]} 39. Qe5 {[%emt 0:00:42]} Bf7 {[%emt 0:00:54]} 40. Nxc5 {[%emt 0:00:33]} Nxc5 {[%emt 0:00:27]} 41. Qc7 {[%emt 0:30:23]} Rd1 {[%emt 0:30:10]} 42. Qxb6 {[%emt 0:00:00]} Bxc4 {[%emt 0:00:00]} 43. Qxc5 {[%emt 0:00:00]} Rxf1+ {[%emt 0:00:00]} 44. Kh2 {[%emt 0:00:00]} Be6 {[%emt 0:00:00]} 45. Qc6 {[%emt 0:00:00]} Re1 {[%emt 0:00:00]} 46. Qxa6 {[%emt 0:00:00]} Re5 {[%emt 0:00:00]} 47. a4 {[%emt 0:00:00]} Bd5 {[%emt 0:00:00]} 48. Qd6 {[%emt 0:00:00]} Rh5+ {[%emt 0:00:00]} 49. Kg1 {[%emt 0:00:00]} 1-0

[Event "Deutschland Grand Prix 2022"]
[Site "Dortmund"]
[Date "2022.07.17"]
[Round "1.4"]
[White "McShane, Luke J"]
[Black "Bluebaum, Matthias"]
[Result "1-0"]
[ECO "C42"]
[WhiteElo "2649"]
[BlackElo "2673"]
[Annotator "ChessBase"]
[PlyCount "130"]
[EventDate "2022.07.17"]
[EventType "tourn"]
[EventCountry "GER"]
[SourceTitle "playchess.com"]
[Source "ChessBase"]
[SourceQuality "1"]
[TimeControl "40/5400+30:1800+30"]

1. e4 {[%emt 0:00:07]} e5 {[%emt 0:00:09]} 2. Nf3 {[%emt 0:00:06]} Nf6 {[%emt 0:00:04]} 3. Nxe5 {[%emt 0:00:14]} d6 {[%emt 0:00:44]} 4. Nd3 {[%emt 0:00:06]} Nxe4 {[%emt 0:00:40]} 5. Qe2 {[%emt 0:00:04]} Qe7 {[%emt 0:00:48]} 6. Nf4 {[%emt 0:00:06]} Nf6 {[%emt 0:02:52]} 7. d4 {[%emt 0:00:36]} Qxe2+ {[%emt 0:01:05]} 8. Bxe2 {[%emt 0:00:05]} Nc6 {[%emt 0:00:04]} 9. c3 {[%emt 0:00:16]} d5 {[%emt 0:00:48]} 10. h4 {[%emt 0:01:08]} h5 {[%emt 0:04:51]} 11. Nd2 {[%emt 0:04:31]} Bd6 {[%emt 0:05:28]} 12. Nf1 {[%emt 0:00:49]} Ne7 {[%emt 0:07:03]} 13. Ng3 {[%emt 0:01:00]} g6 {[%emt 0:01:32]} 14. Bd3 {[%emt 0:00:10]} Bd7 {[%emt 0:01:05]} 15. f3 {[%emt 0:03:14]} O-O {[%emt 0:09:49]} 16. Nfe2 {[%emt 0:03:52]} Ne8 {[%emt 0:03:56]} 17. Kf2 {[%emt 0:01:19]} Ng7 {[%emt 0:02:39]} 18. Bf4 {[%emt 0:00:19]} Bxf4 {[%emt 0:01:31]} 19. Nxf4 {[%emt 0:00:05]} Ne6 {[%emt 0:00:48]} 20. Nxe6 {[%emt 0:03:00]} Bxe6 {[%emt 0:00:09]} 21. Rae1 {[%emt 0:00:06]} Rfe8 {[%emt 0:07:55]} 22. Re5 {[%emt 0:01:25]} Kf8 {[%emt 0:02:30]} 23. Rhe1 {[%emt 0:05:43]} Bd7 {[%emt 0:05:57]} 24. Ne2 {[%emt 0:13:32]} c6 {[%emt 0:10:10]} 25. Nf4 {[%emt 0:02:03]} Rad8 {[%emt 0:05:58]} 26. g3 {[%emt 0:10:50]} Bc8 {[%emt 0:06:07]} 27. a4 {[%emt 0:01:17]} a5 {[%emt 0:00:48]} 28. b4 {[%emt 0:02:10]} axb4 {[%emt 0:04:42]} 29. cxb4 {[%emt 0:00:10]} Nf5 {[%emt 0:00:02]} 30. Bxf5 {[%emt 0:25:28]} Bxf5 {[%emt 0:00:06]} 31. Nxh5 {[%emt 0:01:16]} Rxe5 {[%emt 0:02:12]} 32. Rxe5 {[%emt 0:00:04]} Bc2 {[%emt 0:01:07]} 33. Nf6 {[%emt 0:00:08]} Bxa4 {[%emt 0:01:14]} 34. g4 {[%emt 0:00:06]} Bb5 {[%emt 0:04:08]} 35. Ke3 {[%emt 0:04:31]} b6 {[%emt 0:02:17]} 36. g5 {[%emt 0:00:38]} Bc4 {[%emt 0:02:48]} 37. f4 {[%emt 0:05:43]} c5 {[%emt 0:02:38]} 38. bxc5 {[%emt 0:01:28]} bxc5 {[%emt 0:00:01]} 39. dxc5 {[%emt 0:00:07]} d4+ {[%emt 0:00:02]} 40. Kd2 {[%emt 0:00:05]} Ra8 {[%emt 0:02:20]} 41. Re4 {[%emt 0:39:28]} Ra2+ {[%emt 0:05:27]} 42. Kc1 {[%emt 0:00:00]} Be6 {[%emt 0:00:51]} 43. Rxd4 {[%emt 0:00:00]} Ke7 {[%emt 0:00:03]} 44. Ng8+ {[%emt 0:00:00]} Ke8 {[%emt 0:00:13]} 45. Nf6+ {[%emt 0:00:00]} Ke7 {[%emt 0:00:01]} 46. Ng8+ {[%emt 0:00:00]} Ke8 {[%emt 0:00:02]} 47. c6 {[%emt 0:00:00]} Ra8 {[%emt 0:10:37]} 48. Nf6+ {[%emt 0:00:00]} Ke7 {[%emt 0:00:50]} 49. Nd7 {[%emt 0:00:00]} Ra5 {[%emt 0:10:49]} 50. Kd2 {[%emt 0:01:41]} Bd5 {[%emt 0:01:57]} 51. Ne5 {[%emt 0:00:35]} Rc5 {[%emt 0:01:54]} 52. Nd3 {[%emt 0:00:18]} Ra5 {[%emt 0:00:26]} 53. c7 {[%emt 0:02:54]} Be6 {[%emt 0:00:58]} 54. Rd8 {[%emt 0:00:16]} Ra2+ {[%emt 0:00:13]} 55. Kc3 {[%emt 0:00:35]} Ra3+ {[%emt 0:00:13]} 56. Kb2 {[%emt 0:01:04]} Ra2+ {[%emt 0:00:15]} 57. Kb1 {[%emt 0:00:07]} Ra3 {[%emt 0:00:33]} 58. Nc5 {[%emt 0:01:52]} Bf5+ {[%emt 0:00:43]} 59. Kb2 {[%emt 0:00:11]} Rf3 {[%emt 0:00:37]} 60. Nd3 {[%emt 0:01:39]} Rh3 {[%emt 0:00:47]} 61. Kc3 {[%emt 0:00:56]} Rxh4 {[%emt 0:01:25]} 62. c8=Q {[%emt 0:00:27]} Bxc8 {[%emt 0:00:05]} 63. Rxc8 {[%emt 0:00:02]} f6 {[%emt 0:00:15]} 64. Rc7+ {[%emt 0:00:21]} Kd6 {[%emt 0:00:53]} 65. Rg7 {[%emt 0:00:05]} Kd5 1-0

[Event "Deutschland Grand Prix 2022"]
[Site "Dortmund"]
[Date "2022.07.18"]
[Round "2.1"]
[White "Navara, David"]
[Black "McShane, Luke J"]
[Result "0-1"]
[ECO "E16"]
[WhiteElo "2688"]
[BlackElo "2649"]
[Annotator "TA"]
[PlyCount "58"]
[EventDate "2022.07.17"]
[EventType "tourn"]
[EventCountry "GER"]
[SourceTitle "playchess.com"]
[Source "ChessBase"]
[SourceQuality "1"]
[TimeControl "40/5400+30:1800+30"]

{[%evp 15,58,0,0,-18,-17,-12,-3,-80,-79,-75,-54,-81,-94,-122,-120,-162,-156,-154,-150,-160,-158,-154,-168,-193,-179,-170,-174,-207,-222,-303,-265,-428,-275,-378,-363,-587,-564,-546,-385,-375,-366,-700,-473,-449,-397]} 1. d4 {[%emt 0:00:02]} Nf6 {[%emt 0:00:09]} 2. c4 {[%emt 0:00:03]} e6 {[%emt 0:00:07]} 3. Nf3 {[%emt 0:00:04]} Bb4+ {[%emt 0:01:46]} 4. Nbd2 {[%emt 0:01:36]} O-O {[%emt 0:00:34]} 5. a3 {[%emt 0:00:13]} Be7 {[%emt 0:00:05]} 6. g3 {[%emt 0:05:45]} b6 {[%emt 0:07:05]} 7. Bg2 {[%emt 0:00:16]} Bb7 {[%emt 0:00:05]} 8. O-O {[%emt 0:00:13]} c5 {[%emt 0:00:50]} 9. d5 {[%emt 0:00:52] E16: Queen's Indian: 4 g3 Bb7 5 Bg2 Bb4+.} exd5 {[%emt 0:00:22]} 10. Nh4 $1 {[%emt 0:01:12]} g6 {[%emt 0:08:27] Inhibits Nf5.} 11. cxd5 {[%emt 0:14:03]} (11. Nb1 $11) 11... Bxd5 $17 {[%emt 0:01:04]} (11... Nxd5 $2 12. Nc4 $18) 12. e4 {[%emt 0:00:14][%cal Be2e4,Be4e5][%mdl 32]} Bc6 {[%emt 0:00:05]} 13. e5 {[%emt 0:05:41] [#]} Ne8 {[%emt 0:00:13][%cal Bf6e8,Be8d6,Bd6f5][%mdl 32] [#]} 14. Qg4 $146 {[%emt 0:12:42]} ({Predecessor:} 14. Ndf3 Na6 15. Qd2 Nac7 16. Qh6 Ne6 17. Rd1 Qc7 18. b4 Rd8 19. Bb2 N8g7 20. Rac1 {½-½ (50) Gupta,A (2643)-Vishnu,P (2406) Dubai 2012}) 14... Bxg2 {[%emt 0:05:52]} 15. Kxg2 {[%emt 0:04:45]} Bxh4 {[%emt 0:07:13]} 16. gxh4 {[%emt 0:00:59]} d5 {[%emt 0:00:52] Against Ne4} 17. exd6 {[%emt 0:12:14]} Nxd6 {[%emt 0:01:38]} 18. Nf3 {[%emt 0:03:23]} h5 {[%emt 0:06:54]} 19. Qf4 {[%emt 0:03:57] [#] Threatens to win with Rd1.} Nf5 $1 {[%emt 0:00:59]} 20. Qe4 {[%emt 0:00:41] [#]} Qc7 $1 {[%emt 0:05:08]} 21. b4 {[%emt 0:06:53]} (21. Qxa8 $2 {loses.} Nc6 22. Bf4 Qd7 $19) (21. Bf4 Qc6) 21... Nc6 {[%emt 0:04:10]} 22. bxc5 {[%emt 0:04:49]} bxc5 {[%emt 0:00:14]} 23. Re1 $2 {[%emt 0:04:56]} (23. Bg5) 23... Qd7 {[%emt 0:07:51]} 24. Bg5 {[%emt 0:04:54]} Rae8 {[%emt 0:08:10]} 25. Rad1 $2 {[%emt 0:01:48]} (25. Qc4) 25... Ncd4 $19 {[%emt 0:08:03] Pair of Knights!} ({Inferior is} 25... Rxe4 26. Rxd7 Ra4 27. Rc1 $17) 26. Ne5 {[%emt 0:00:28]} Rxe5 {[%emt 0:02:59]} 27. Qxe5 {[%emt 0:00:10]} f6 $1 {[%emt 0:00:05] Really sharp!} 28. Qxc5 {[%emt 0:00:33]} (28. Bxf6 Qc6+ 29. Re4 Rxf6 30. Qe8+ Kg7 31. Qxc6 Rxc6 32. Rc1) 28... Rc8 {[%emt 0:08:29]} 29. Re7 {[%emt 0:02:11]} Nxe7 {[%emt 0:01:31] White did not feel at home in the position after the opening.  Weighted Error Value: White=0.57/Black=0.32} ({Worse is} 29... Rxc5 30. Rxd7 fxg5 31. hxg5 $11) 0-1

[Event "Deutschland Grand Prix 2022"]
[Site "Dortmund"]
[Date "2022.07.18"]
[Round "2.3"]
[White "L'Ami, Erwin"]
[Black "Eljanov, Pavel"]
[Result "0-1"]
[ECO "E11"]
[WhiteElo "2634"]
[BlackElo "2681"]
[Annotator "TA"]
[PlyCount "92"]
[EventDate "2022.07.17"]
[EventType "tourn"]
[EventCountry "GER"]
[SourceTitle "playchess.com"]
[Source "ChessBase"]
[SourceQuality "1"]
[TimeControl "40/5400+30:1800+30"]

{[%evp 12,92,13,0,8,2,3,8,4,0,0,0,0,0,0,0,0,2,8,-34,-16,-20,-20,-30,10,0,-22,-43,-43,-70,-70,-70,-42,-42,-42,-52,-49,-52,-38,-134,-111,-123,-120,-151,-159,-184,-129,-163,-163,-183,-167,-260,-248,-243,-233,-357,-358,-348,-331,-408,-407,-401,-382,-397,-398,-401,-399,-380,-371,-330,-353,-345,-330,-595,-590,-644,-633,-640,-634,-627,-621,-585,-585]} 1. d4 {[%emt 0:00:04]} Nf6 {[%emt 0:00:11]} 2. c4 {[%emt 0:00:08]} e6 {[%emt 0:00:04]} 3. Nf3 {[%emt 0:00:14]} d5 {[%emt 0:00:06]} 4. g3 {[%emt 0:00:41]} Bb4+ {[%emt 0:00:15]} 5. Bd2 {[%emt 0:00:16]} Be7 {[%emt 0:00:07]} 6. Bg2 {[%emt 0:00:31]} c6 {[%emt 0:00:09]} 7. Qc2 {[%emt 0:02:43]} Nbd7 {[%emt 0:00:44] E11: Bogo-Indian.} 8. O-O {[%emt 0:03:58]} b6 {[%emt 0:01:55]} 9. Bf4 {[%emt 0:01:45]} Bb7 $1 {[%emt 0:00:14] The position is equal. 9...Bb7 scores better than 9...Ba6.} 10. Nbd2 {[%emt 0:04:14] [#]} c5 $146 {[%emt 0:11:22]} ({Predecessor:} 10... Nh5 11. Be3 Nhf6 12. h3 O-O 13. Bg5 c5 14. cxd5 Nxd5 15. Bxe7 Qxe7 16. e4 Nb4 {0-1 (40) Kaasen,T (2442)-Vidit,S (2673) Chess.com INT 2017}) 11. dxc5 {[%emt 0:03:32]} Bxc5 {[%emt 0:10:04]} 12. Ne5 {[%emt 0:05:50]} Nxe5 {[%emt 0:08:59]} 13. Bxe5 {[%emt 0:00:39]} O-O {[%emt 0:00:13]} 14. Rad1 {[%emt 0:13:05]} Rc8 {[%emt 0:12:01]} 15. b3 {[%emt 0:05:38]} Ng4 {[%emt 0:09:04]} 16. Ba1 {[%emt 0:06:41]} Qe7 {[%emt 0:03:03]} 17. Qb2 {[%emt 0:03:11][%csl Ga1][%cal Rb2g7] [#]} Nf6 {[%emt 0:06:31]} 18. Qe5 {[%emt 0:15:07]} Ba6 {[%emt 0:04:01]} 19. cxd5 {[%emt 0:07:45]} exd5 {[%emt 0:00:53] aiming for ...Qxe5.} 20. Bf3 {[%emt 0:07:40]} Qxe5 {[%emt 0:04:03]} 21. Bxe5 {[%emt 0:00:12]} Rfe8 {[%emt 0:00:10]} (21... Ne4 $5 22. Bxe4 dxe4 $17) 22. Bxf6 {[%emt 0:01:42]} gxf6 {[%emt 0:00:05]} 23. Rfe1 {[%emt 0:01:00]} Bb4 {[%emt 0:15:24]} 24. a3 $1 {[%emt 0:00:36]} Bc3 $36 {[%emt 0:00:04][%mdl 2048] Black has some pressure.} (24... Bxa3 25. Ra1 Bb4 26. Rxa6 $16) 25. Bxd5 {[%emt 0:03:16] Black converts the advantage convincingly.} (25. Rf1 $15) 25... f5 {[%emt 0:05:32]} ({Don't play} 25... Bxe2 $6 26. Rc1 $11) (25... Rxe2 $6 26. Rxe2 Bxe2 27. Rc1 $11) 26. e4 {[%emt 0:08:24]} Bd3 {[%emt 0:03:58]} 27. f3 {[%emt 0:04:04]} b5 {[%emt 0:02:57]} 28. Nf1 {[%emt 0:00:56]} fxe4 {[%emt 0:01:13]} (28... Bc2 $19 29. Ne3 Bxe1 30. Rxe1 fxe4) 29. fxe4 {[%emt 0:00:12] [#]} Bc2 $1 {[%emt 0:00:35] A strong pair of Bishops.} ({Inferior is} 29... Bxe1 30. Rxd3 Rc1 31. Rf3) 30. Kf2 {[%emt 0:00:53]} Kf8 {[%emt 0:00:48]} 31. h4 {[%emt 0:00:30]} (31. g4 $142) 31... Bxe1+ {[%emt 0:00:31]} ({Not} 31... Bxd1 32. Rxd1 Bb2 33. Ne3 $17) 32. Rxe1 {[%emt 0:00:02]} Rc3 {[%emt 0:00:22]} 33. Rc1 {[%emt 0:00:37]} (33. Re3 $142 Rxe3 34. Kxe3) 33... Rec8 $19 {[%emt 0:00:16]} 34. Nd2 {[%emt 0:00:12]} a5 {[%emt 0:00:36]} 35. a4 {[%emt 0:00:57]} bxa4 {[%emt 0:00:52]} 36. bxa4 {[%emt 0:00:03]} R8c5 {[%emt 0:00:14]} 37. Ra1 {[%emt 0:00:52]} f5 {[%emt 0:00:25]} 38. Kg2 {[%emt 0:00:12]} Bd3 {[%emt 0:00:55] Prevents Rf1. ...Rc2 is the strong threat.} 39. Kf2 {[%emt 0:00:48]} Ke7 {[%emt 0:00:26]} 40. Re1 {[%emt 0:00:48]} Kf6 {[%emt 0:00:21]} 41. Re3 {[%emt 0:03:45]} Bc2 {[%emt 0:04:29]} 42. e5+ $2 {[%emt 0:07:44]} (42. Rxc3 Rxc3 43. exf5) 42... Ke7 {[%emt 0:00:32] And now ...Rxe3 would win. Black is clearly winning.} 43. Bg8 {[%emt 0:01:29]} Rxe3 {[%emt 0:08:50]} 44. Kxe3 {[%emt 0:00:14]} Rxe5+ {[%emt 0:00:05]} 45. Kd4 {[%emt 0:00:53]} Re2 {[%emt 0:01:01]} 46. Nc4 {[%emt 0:00:54]} Bb3 {[%emt 0:01:25] Weighted Error Value: White=0.27 (precise) /Black=0.05 (flawless)} 0-1